Cogmind - Beta 13 @@@ ROGUE MODE // 2024.04.06 @ 13:45:55 Player: Andru7428 Result: Self-destructed Performance ------------- Evolutions (5) 2500 Regions Visited (11) 2200 Robots Destroyed (168) 840 Value Destroyed (7332) 7332 Prototype IDs (18) 360 Alien Tech Used (0) 0 Bonus (3116) 3116 TOTAL SCORE: 16348 Bonus ------- High Alert Combat Kills 669 Follower Combat Kills 640 Entered Garrisons 600 Used RIF Installer 2000 Friendly Fire -793 Cogmind --------- Core Integrity 737/1000 Matter 94/300 Energy 100/100 System Corruption 5% Temperature Cool (0) Movement Core (1500) Ox29 Location -5/Factory Parts ------- > --- POWER (1) -------- (None) > --- PROPULSION (2) --- (None) > --- UTILITY (12) ----- Huge Storage Unit Core Analyzer Relay Coupler [NC] (17) Relay Coupler [Swarmer] (38) Relay Coupler [Brawler] (42) Relay Coupler [Sentry] (14) > --- WEAPON (2) ------- Precision Rocket Launcher > --- INVENTORY (25) --- Compact Wheel Advanced Heat Sink Improved Signal Interpreter Improved Light Armor Plating Medium Reflective Plating Advanced Shield Generator Relay Coupler [NC] (25) Relay Coupler [NC] (28) Relay Coupler [NC] (41) Relay Coupler [NC] (39) Relay Coupler [Grunt] (29) Relay Coupler [Sentry] (24) Relay Coupler [Specialist] (18) Heavy Ion Cannon Heavy Ion Cannon Advanced EMP Blaster Advanced EMP Blaster Scatter Rocket Array Improved Plasma Cutter Peak State ------------ > --- POWER ------------ Improved Deuterium Engine > --- PROPULSION ------- Compact Wheel > --- UTILITY ---------- Huge Storage Unit Core Analyzer Layered Heavy Armor Plating Hacking Suite Relay Coupler [NC] Relay Coupler [Swarmer] Relay Coupler [Grunt] Relay Coupler [Brawler] Relay Coupler [Sentry] Relay Coupler [Hunter] Relay Coupler [Hunter] > --- WEAPON ----------- Hypervelocity Gauss Cannon Remote Datajack > --- INVENTORY -------- Neutrino Core Advanced Heat Sink Compact Matter Pod Improved Signal Interpreter Medium Reflective Plating Advanced Shield Generator Relay Coupler [NC] Relay Coupler [NC] Relay Coupler [NC] Relay Coupler [NC] Relay Coupler [Grunt] Relay Coupler [Sentry] Relay Coupler [Sentry] Relay Coupler [Specialist] Heavy EM Shotgun Heavy EM Shotgun Heavy Ion Cannon Heavy Ion Cannon Hypervelocity Gauss Rifle Advanced EMP Blaster Advanced EMP Blaster Precision Rocket Launcher Scatter Rocket Array Improved Plasma Cutter [Rating: 68] Favorites ----------- Power Heavy Ion Engine Engine Heavy Ion Engine Power Core Nuclear Core Propulsion Light Treads Treads Light Treads Wheel Armored Wheel Utility Improved Light Armor Plating Device Heat Sink Storage Huge Storage Unit Processor Improved Targeting Computer Hackware Relay Coupler [Grunt] Protection Improved Light Armor Plating Weapon Heavy Ion Cannon Energy Gun Improved EM Shotgun Energy Cannon Heavy Ion Cannon Ballistic Gun Assault Rifle Ballistic Cannon Hypervelocity Gauss Cannon Launcher Shock Bomb Launcher Special Weapon Remote Datajack Build | -11 -10 -9 -8 -8 -8 -8 -8 -8 -6 -6 -5 ------- Run | Yrd Mat Mat Mat Gar Mat Sto Gar Rec Fac Gar Fac Slots Evolved 10 | . . 2 2 . . . . . 4 . 2 Power . | . . . . . . . . . . . . Propulsion . | . . . . . . . . . . . . Utility 10 | . . 2 2 . . . . . 4 . 2 Weapon . | . . . . . . . . . . . . Parts Attached 171 | 7 5 16 30 17 6 6 16 2 11 29 26 Power 13 | 1 . 1 2 2 1 1 . . 1 2 2 Engine 7 | 1 . 1 2 1 . . . . 1 1 . Core 6 | . . . . 1 1 1 . . . 1 2 Reactor . | . . . . . . . . . . . . Propulsion 17 | 2 . 3 6 . . . 2 1 . 1 2 Treads 9 | 2 . 3 4 . . . . . . . . Leg . | . . . . . . . . . . . . Wheel 8 | . . . 2 . . . 2 1 . 1 2 Hover . | . . . . . . . . . . . . Flight . | . . . . . . . . . . . . Utility 61 | 2 4 5 13 3 3 1 2 1 9 14 4 Device 12 | 1 2 2 5 . 1 . . . 1 . . Storage 5 | 1 2 . . 1 . . . . 1 . . Processor 4 | . . 1 1 . . . . 1 1 . . Hackware 21 | . . . . . 2 1 1 . 4 11 2 Protection 19 | . . 2 7 2 . . 1 . 2 3 2 Artifact . | . . . . . . . . . . . . Weapon 80 | 2 1 7 9 12 2 4 12 . 1 12 18 Energy Gun 16 | 1 . 2 3 . . 1 4 . . 1 4 Energy Cannon 28 | . 1 4 4 7 1 2 1 . . 4 4 Ballistic Gun 4 | 1 . 1 1 . . . . . . . 1 Ballistic Cannon 7 | . . . . . . . . . 1 4 2 Launcher 14 | . . . 1 5 . 1 3 . . . 4 Special Weapon 11 | . . . . . 1 . 4 . . 3 3 Impact Weapon . | . . . . . . . . . . . . Slashing Weapon . | . . . . . . . . . . . . Piercing Weapon . | . . . . . . . . . . . . Special Melee Weapon . | . . . . . . . . . . . . Unidentified Prototypes 6 | . . 2 2 . . 2 . . . . . Parts Lost 38 | . 1 2 3 3 . . 1 . 1 11 16 Power 6 | . . . . 2 . . . . . 2 2 Propulsion 7 | . . 1 . . . . 1 . . 2 3 Utility 17 | . 1 . 2 1 . . . . 1 6 6 Weapon 8 | . . 1 1 . . . . . . 1 5 Highest Loss Streak 8 | . 1 1 2 1 . . 1 . 1 8 8 To Critical Strikes . | . . . . . . . . . . . . Average Slot Usage (%) 95 | . 99 97 94 94 99 99 99 100 97 92 86 Engine 5 | . 14 11 8 4 . . . . 4 2 4 Core 2 | . . . . 4 9 9 9 9 1 3 . Treads 8 | . 28 22 17 . . . . . . . . Wheel 7 | . . . . 18 18 18 17 18 13 7 5 Device 9 | . 13 13 19 18 7 2 . . . . . Storage 8 | . 14 11 9 9 9 9 9 9 6 6 5 Processor 8 | . . 10 9 9 9 9 9 9 10 11 5 Hackware 15 | . . . . . 10 15 18 18 38 39 46 Protection 9 | . . 7 11 12 18 18 18 18 7 5 4 Energy Gun 3 | . 5 2 6 . . . 8 9 4 . . Energy Cannon 8 | . 8 17 11 17 17 17 1 . . . 1 Ballistic Gun 1 | . 14 1 . . . . . . . . . Ballistic Cannon 1 | . . . . . . . . . 1 5 3 Special Weapon 2 | . . . . . . . 7 9 6 5 4 Naked Turns . | . . . . . . . . . . . . Heaviest Build 126 | 15 51 61 86 125 110 110 109 100 106 115 126 Greatest Support 40 | 40 40 40 40 24 24 24 24 24 24 28 26 Greatest Overweight (x) 40 | . 1 1 6 5 4 4 9 4 4 7 40 Average Overweight (x) 3 | . . 1 1 3 4 4 4 4 4 5 6 Largest Inventory Capacity 25 | 8 20 20 20 25 25 25 25 25 25 25 25 Average Capacity 22 | 7 17 20 20 22 25 25 25 25 25 25 25 Most Carried 25 | 7 10 20 20 25 25 25 25 25 25 25 25 Average Carried 20 | 4 8 17 19 21 24 24 23 24 22 24 23 Final Capacity 25 | 8 20 20 20 25 25 25 25 25 25 25 25 Final Carried 25 | 5 10 20 19 25 25 25 25 25 25 22 19 Class Distribution -------------------- 47% | Mutant 27% | Bothacker-Mutant 24% | Botlord-Mutant Dominant Class ---------------- Mutant | -10/Materials Mutant | -9/Materials Mutant | -8/Materials Mutant | -8/Garrison Bothacker-Mutant | -8/Materials Bothacker-Mutant | -8/Storage Bothacker-Mutant | -8/Garrison Bothacker-Mutant | -8/Recycling Bothacker-Mutant | -6/Factory Botlord-Mutant | -6/Garrison Botlord-Mutant | -5/Factory Resources | -11 -10 -9 -8 -8 -8 -8 -8 -8 -6 -6 -5 ----------- Run | Yrd Mat Mat Mat Gar Mat Sto Gar Rec Fac Gar Fac Matter Collected 3913 | 200 217 176 325 345 129 60 316 130 65 1297 653 Remotely . | . . . . . . . . . . . . Salvage Created 7345 | 24 440 1038 1304 1312 222 147 998 113 . 759 988 Parts 399 | 3 30 53 80 57 11 7 45 7 . 39 67 Haulers Intercepted 14 | . 2 3 6 . . 3 . . . . . Recyclers Shooed 6 | . . 1 . . . . . . . . 5 Parts Field Recycled . | . . . . . . . . . . . . Retrieved Matter . | . . . . . . . . . . . . Parts Self-Destructed . | . . . . . . . . . . . . Prevented . | . . . . . . . . . . . . Kills | -11 -10 -9 -8 -8 -8 -8 -8 -8 -6 -6 -5 ------- Run | Yrd Mat Mat Mat Gar Mat Sto Gar Rec Fac Gar Fac Combat Hostiles Destroyed 129 | . 9 21 16 30 4 . 18 2 . 14 15 Guns 29 | . 7 6 5 . . . 6 2 . . 3 Cannons 54 | . 2 14 4 12 3 . 1 . . 14 4 AOE 37 | . . . 7 13 . . 9 . . . 8 Classes Destroyed 16 | 1 4 4 3 4 . . . . . . . Worker 7 | . 2 . 1 . . . . . . . 4 Builder 5 | . . 1 . . . . . . . . 4 Tunneler 1 | 1 . . . . . . . . . . . Hauler 14 | . 2 3 6 . . 3 . . . . . Recycler 4 | . . . 2 . . . . . . . 2 Operator 1 | . . 1 . . . . . . . . . Watcher 2 | . . . 1 . . . 1 . . . . Swarmer 26 | . 3 7 3 7 . . 3 . . 1 2 Grunt 48 | . 6 9 4 13 . . 10 . . 2 4 Brawler 8 | . . 1 . 1 . . 1 . . 1 4 Duelist 6 | . . . . 1 . . 2 1 . . 2 Protector 1 | . . . . 1 . . . . . . . Sentry 30 | . . 4 6 5 3 . 3 1 . 8 . Demolisher 1 | . . . . 1 . . . . . . . Hunter 7 | . . . 3 . 1 . . . . 2 1 Programmer 7 | . . . . 1 . . . . . 2 4 Best Kill Streak 9 | 1 4 7 3 5 2 2 9 1 . 2 7 Combat Bots Only 9 | . 3 7 3 5 2 . 9 1 . 2 5 Max Kills in Single Turn 4 | 1 2 1 2 3 1 1 3 1 . 1 4 Gunslinging . | . . . . . . . . . . . . Exploded 3 | . . . 2 3 . . 3 . . . 2 Melee . | . . . . . . . . . . . . Uniques/NPCs Destroyed . | . . . . . . . . . . . . Combat | -11 -10 -9 -8 -8 -8 -8 -8 -8 -6 -6 -5 -------- Run | Yrd Mat Mat Mat Gar Mat Sto Gar Rec Fac Gar Fac Hostile Shots Fired 564 | . 32 106 66 77 10 . 48 7 1 103 114 Missed 168 | . 5 27 19 21 2 . 14 4 . 45 31 Damage Taken 7044 | . 279 881 627 1342 115 . 622 57 78 973 2070 Core 848 | . 12 113 53 249 . . 26 . . 132 263 Absorbed by Shields 44 | . . . . 32 . . . . . 12 . Core Remaining (%) 78 | 100 95 71 . . . . . 40 . 84 . Volleys Fired 510 | 2 33 48 50 68 9 5 48 16 2 137 92 Largest 2 | 2 2 2 2 2 2 2 2 1 1 2 2 Hottest 130 | 70 80 112 130 130 130 130 130 50 50 126 130 Shots Fired 712 | 4 66 96 95 106 15 11 62 16 2 141 98 Gun 198 | 4 53 25 52 . . . 37 6 1 1 19 Cannon 399 | . 13 71 40 80 12 11 3 . . 114 55 Launcher 53 | . . . 3 26 . . 13 . . . 11 Special 62 | . . . . . 3 . 9 10 1 26 13 Kinetic 216 | 2 33 14 . . . . . . . 108 59 Thermal 191 | 2 33 14 20 80 12 11 3 . . 6 10 Explosive 9 | . . . . . . . . . . . 9 Electromagnetic 234 | . . 68 75 26 . . 50 6 1 1 7 Robot Hit Streak 22 | 1 8 19 10 14 6 10 22 13 2 19 18 Robot Miss Streak 4 | 2 3 3 3 2 1 2 4 3 1 3 4 Penetration Max 1 | . . . . . . . . . . 1 1 Secondary Targets . | . . . . . . . . . . . . Shots Hit Robots 473 | 1 41 57 72 56 11 8 38 14 2 99 74 Core Hits 253 | 1 18 30 47 39 3 3 31 4 . 27 50 Critical Kills 24 | . . 1 . 1 1 . . . . 14 7 Critical Parts Destroyed 41 | . . . . . . . . . . 24 17 Critical Strikes 69 | . 2 1 . 1 1 . . . . 40 24 Burn 2 | . 2 . . . . . . . . . . Meltdown 2 | . . . . 1 1 . . . . . . Destroy 65 | . . 1 . . . . . . . 40 24 Melee Attacks . | . . . . . . . . . . . . Impact . | . . . . . . . . . . . . Slashing . | . . . . . . . . . . . . Piercing . | . . . . . . . . . . . . Sneak Attacks . | . . . . . . . . . . . . Combat Hostiles . | . . . . . . . . . . . . Follow-up Attacks . | . . . . . . . . . . . . Damage Inflicted 12354 | 15 637 1366 1804 2527 239 216 1665 90 15 1250 2530 Guns 2080 | 15 473 196 661 . . . 487 90 15 . 143 Cannons 5666 | . 161 1065 776 1110 239 216 26 . . 1250 823 Explosions 4588 | . . 97 358 1417 . . 1152 . . . 1564 Melee . | . . . . . . . . . . . . Ramming 20 | . 3 8 9 . . . . . . . . Kinetic 2225 | 15 285 67 . . . . . . . 1250 608 Thermal 3520 | . 349 201 761 1306 239 216 147 . . . 301 Explosive 1348 | . . . . . . . . . . . 1348 Electromagnetic 5241 | . . 1090 1034 1221 . . 1518 90 15 . 273 Impact . | . . . . . . . . . . . . Slashing . | . . . . . . . . . . . . Piercing . | . . . . . . . . . . . . Highest Corruption 16 | . . . . 3 3 3 5 5 . 16 5 Average Corruption 4 | . . . . 2 3 3 4 5 . 15 1 Corruption Purged . | . . . . . . . . . . . . Corruption Blocked . | . . . . . . . . . . . . Effects 114 | . . . . 22 11 6 36 16 . 20 3 Message Errors 27 | . . . . 6 3 3 4 5 . 6 . Matter Fused 31 | . . . . 7 5 . 12 3 . 3 1 Heat Flow Errors 15 | . . . . 2 1 . 5 2 . 4 1 Energy Discharges 14 | . . . . 2 . . 7 4 . 1 . Parts Rejected 2 | . . . . . . 1 1 . . . . Data Loss (minor) 12 | . . . . 2 1 1 5 1 . 2 . Data Loss (major) 3 | . . . . 1 1 . . 1 . . . Misfires 8 | . . . . 2 . 1 2 . . 2 1 Alerts 1 | . . . . . . . . . . 1 . Weapon Failures 1 | . . . . . . . . . . 1 . Overload Shots . | . . . . . . . . . . . . Overflow Damage 146 | . . . . 26 . . 7 . . 17 96 Projectiles 37 | . . . . 12 . . . . . 17 8 Explosions 109 | . . . . 14 . . 7 . . . 88 Melee . | . . . . . . . . . . . . Knockbacks 27 | . . . 1 . . . . . . 14 12 Impact 1 | . . . 1 . . . . . . . . Kinetic 25 | . . . . . . . . . . 14 11 Secondary 1 | . . . . . . . . . . . 1 Self-Inflicted Damage 497 | . . 76 . 88 . . 66 . . . 267 Shots 14 | . . 2 . 5 . . 2 . . . 5 Rammed 5 | . 1 3 1 . . . . . . . . Targets Rammed 5 | . 1 3 1 . . . . . . . . Kicked . | . . . . . . . . . . . . Crushed . | . . . . . . . . . . . . Highest Temperature 325 | 18 144 197 325 198 179 138 268 265 6 257 217 Average Temperature 57 | 10 45 82 43 69 71 62 62 75 6 30 56 Received Heat Transfer 1284 | . 111 252 171 231 45 . 135 . 9 144 186 Effects 4 | . . . 4 . . . . . . . . Energy Bleed 1 | . . . 1 . . . . . . . . Interference 3 | . . . 3 . . . . . . . . Siege Activations . | . . . . . . . . . . . . Robots Corrupted 8 | . . 2 . 4 . . 2 . . . . Combat Hostiles 7 | . . 1 . 4 . . 2 . . . . Parts Fried 26 | . . 8 5 3 . . 10 . . . . Impact Corruptions . | . . . . . . . . . . . . Robots Melted 2 | . . . . 1 1 . . . . . . Combat Hostiles 2 | . . . . 1 1 . . . . . . Parts Melted 17 | . 3 1 . 6 3 1 1 . . . 2 Heat Transferred 5222 | . 1036 422 866 1749 333 296 187 . . . 333 Parts Sabotaged . | . . . . . . . . . . . . Parts Stolen . | . . . . . . . . . . . . Parts Stripped . | . . . . . . . . . . . . Power Chain Reactions 13 | . . 2 4 3 . . 4 . . . . Alert | -11 -10 -9 -8 -8 -8 -8 -8 -8 -6 -6 -5 ------- Run | Yrd Mat Mat Mat Gar Mat Sto Gar Rec Fac Gar Fac Peak Influence 1333 | 5 246 306 189 1126 588 262 823 390 37 1333 699 Initial 699 | . 3 11 116 55 548 222 170 370 13 . 699 Average 351 | 2 77 163 86 687 510 234 560 241 12 589 576 Maximum Alert Level 4 | . 1 1 . 4 2 1 3 1 . 4 2 Low Security (%) 48 | 100 92 72 100 5 . . 5 33 100 27 . Level 1 11 | . 7 27 . 17 21 100 2 66 . 9 . Level 2 25 | . . . . 25 78 . 73 . . 19 100 Level 3 11 | . . . . 40 . . 17 . . 32 . Level 4 2 | . . . . 9 . . . . . 11 . Level 5 . | . . . . . . . . . . . . High Security . | . . . . . . . . . . . . Max Security . | . . . . . . . . . . . . Squads Dispatched 17 | . 3 5 2 . . . . . . . 7 Investigation 4 | . . 2 2 . . . . . . . . Extermination 2 | . . . . . . . . . . . 2 Reinforcement 9 | . 3 3 . . . . . . . . 3 Assault 2 | . . . . . . . . . . . 2 Garrison . | . . . . . . . . . . . . Intercept . | . . . . . . . . . . . . Searches Triggered . | . . . . . . . . . . . . Construction Impeded 3 | . . . . . . . . . . . 3 Haulers Reinforced . | . . . . . . . . . . . . Active Scanning Responses . | . . . . . . . . . . . . Cargo Convoy Interrupts . | . . . . . . . . . . . . Stealth | -11 -10 -9 -8 -8 -8 -8 -8 -8 -6 -6 -5 --------- Run | Yrd Mat Mat Mat Gar Mat Sto Gar Rec Fac Gar Fac Distress Signals 13 | . 3 1 2 . 1 1 . . . . 5 Communications Jammed . | . . . . . . . . . . . . Distress Signals . | . . . . . . . . . . . . Times Spotted 252 | . 21 33 35 30 10 2 20 4 4 47 46 Peak Tracking Total 9 | . 4 5 3 5 3 1 9 3 2 6 7 Tactical Retreats 24 | . 2 1 . 1 . . 3 . . 15 2 Traps | -11 -10 -9 -8 -8 -8 -8 -8 -8 -6 -6 -5 ------- Run | Yrd Mat Mat Mat Gar Mat Sto Gar Rec Fac Gar Fac Traps Triggered 38 | . . . 1 13 . . 8 . . 15 1 Indirectly . | . . . . . . . . . . . . Trap Hack Attempts . | . . . . . . . . . . . . Triggered . | . . . . . . . . . . . . Disarmed . | . . . . . . . . . . . . Reprogrammed . | . . . . . . . . . . . . Reused . | . . . . . . . . . . . . Traps Extracted . | . . . . . . . . . . . . Installed . | . . . . . . . . . . . . Triggered . | . . . . . . . . . . . . Machines | -11 -10 -9 -8 -8 -8 -8 -8 -8 -6 -6 -5 ---------- Run | Yrd Mat Mat Mat Gar Mat Sto Gar Rec Fac Gar Fac Machines Disabled 23 | . . . 3 8 . . 4 . . 4 4 Max in Single Turn 2 | . . . 1 2 . . 1 . . 1 2 Garrison Access 1 | . . . . . 1 . . . . . . Garrison Relay 10 | . . . . 4 . . 2 . . 4 . Machines Repaired . | . . . . . . . . . . . . Machines Dismantled . | . . . . . . . . . . . . Machines Sabotaged . | . . . . . . . . . . . . Overloaded Fab Kills . | . . . . . . . . . . . . Hacking | -11 -10 -9 -8 -8 -8 -8 -8 -8 -6 -6 -5 --------- Run | Yrd Mat Mat Mat Gar Mat Sto Gar Rec Fac Gar Fac Machines Accessed 44 | . 4 5 7 3 8 3 3 5 2 2 2 Terminals 38 | . 4 5 6 3 5 2 3 5 1 2 2 Fabricators . | . . . . . . . . . . . . Repair Stations 1 | . . . . . 1 . . . . . . Recycling Units . | . . . . . . . . . . . . Scanalyzers 1 | . . . . . 1 . . . . . . Garrison Access 4 | . . . 1 . 1 1 . . 1 . . Total Hacks 118 | . 17 19 28 3 17 5 6 13 3 2 5 Successful 43 | . 8 5 9 2 8 3 1 2 1 1 3 Failed 75 | . 9 14 19 1 9 2 5 11 2 1 2 Catastrophic 13 | . 2 2 . 1 2 . 1 3 1 1 . Database Lockouts . | . . . . . . . . . . . . Manual 37 | . 8 11 2 . 2 1 . 10 . . 3 Terminals 106 | . 17 19 25 3 10 4 6 13 2 2 5 Fabricators . | . . . . . . . . . . . . Repair Stations 4 | . . . . . 4 . . . . . . Recycling Units . | . . . . . . . . . . . . Scanalyzers 2 | . . . . . 2 . . . . . . Garrison Access 6 | . . . 3 . 1 1 . . 1 . . Terminal Hacks 31 | . 6 5 8 2 2 1 1 2 . 1 3 Prototype ID Bank 5 | . 3 1 1 . . . . . . . . Open Door 1 | . . . . . . 1 . . . . . Open DSF 1 | . . . . . . . . . . . 1 Branch Access Points 1 | . . 1 . . . . . . . . . Emergency Access Points 3 | . . 1 . 1 . . . . . 1 . Terminal Index 1 | . 1 . . . . . . . . . . Unreport Threat 6 | . . 1 2 . . . . 2 . . 1 Locate Traps 4 | . 1 . 1 . 1 . . . . . 1 Patrol Status 1 | . . . . . 1 . . . . . . Transport Status 1 | . . . 1 . . . . . . . . Hauler Manifests 2 | . . . 2 . . . . . . . . Zone Layout 3 | . 1 1 1 . . . . . . . . Garrison Registry 1 | . . . . . . . 1 . . . . Security Stations 1 | . . . . 1 . . . . . . . Fabricator Hacks . | . . . . . . . . . . . . Repair Station Hacks 2 | . . . . . 2 . . . . . . Scan Component 1 | . . . . . 1 . . . . . . Repair 1 | . . . . . 1 . . . . . . Recycling Unit Hacks . | . . . . . . . . . . . . Scanalyzer 2 | . . . . . 2 . . . . . . Insert Component 1 | . . . . . 1 . . . . . . Analyze 1 | . . . . . 1 . . . . . . Garrison Access Hacks 4 | . . . 1 . 1 1 . . 1 . . Unlock Access 3 | . . . 1 . . 1 . . 1 . . Seal Access 1 | . . . . . 1 . . . . . . Unauthorized Hacks 4 | . 2 . . . 1 1 . . . . . Terminals 4 | . 2 . . . 1 1 . . . . . Botnet 2 | . 1 . . . . 1 . . . . . Disrupt 1 | . . . . . 1 . . . . . . Operators 1 | . 1 . . . . . . . . . . Fabricators . | . . . . . . . . . . . . Repair Stations . | . . . . . . . . . . . . Recycling Units . | . . . . . . . . . . . . Scanalyzers . | . . . . . . . . . . . . Garrison Access . | . . . . . . . . . . . . Data Cores Recovered 1 | . . 1 . . . . . . . . . Used . | . . . . . . . . . . . . Hacking Detections 36 | . 4 5 6 2 7 1 3 4 2 1 1 Full Trace Events . | . . . . . . . . . . . . Feedback Events . | . . . . . . . . . . . . Feedback Blocked . | . . . . . . . . . . . . Robot Schematics Acquired . | . . . . . . . . . . . . Robots Built . | . . . . . . . . . . . . Authchips . | . . . . . . . . . . . . Time . | . . . . . . . . . . . . Total Robot Build Rating . | . . . . . . . . . . . . Part Schematics Acquired 1 | . . . . . 1 . . . . . . Parts Built . | . . . . . . . . . . . . Authchips . | . . . . . . . . . . . . Time . | . . . . . . . . . . . . Total Part Build Rating . | . . . . . . . . . . . . Parts Repaired 1 | . . . . . 1 . . . . . . Time 61 | . . . . . 61 . . . . . . Parts Recycled . | . . . . . . . . . . . . Recycled Matter . | . . . . . . . . . . . . Retrieved Matter . | . . . . . . . . . . . . Retrieved Components . | . . . . . . . . . . . . Parts Scanalyzed 1 | . . . . . 1 . . . . . . Part Schematics Acquired 1 | . . . . . 1 . . . . . . Parts Damaged 1 | . . . . . 1 . . . . . . Bothacking | -11 -10 -9 -8 -8 -8 -8 -8 -8 -6 -6 -5 ------------ Run | Yrd Mat Mat Mat Gar Mat Sto Gar Rec Fac Gar Fac Used RIF Installer 4 | . . . . 2 . . 1 . . 1 . Command Fork 1 | . . . . . . . . . . 1 . Robot Detection 1 | . . . . 1 . . . . . . . Patrol Navigation 1 | . . . . . . . 1 . . . . Robots Hacked 27 | . . . . . 1 . 6 1 1 11 7 Non-combat 2 | . . . . . . . . . 1 . 1 Combat 25 | . . . . . 1 . 6 1 . 11 6 Robot Hacks Applied 34 | . . . . . 1 . 7 1 1 14 10 drop_inventory 2 | . . . . . . . . . 1 . 1 find_garrison 1 | . . . . . . . . . . . 1 tweak_propulsion 1 | . . . . . . . . . . 1 . disrupt_area 1 | . . . . . . . . . . 1 . amplify_resonance 1 | . . . . . . . . . . 1 . wipe_record 1 | . . . . . . . . . . . 1 disable_weapons 9 | . . . . . . . 4 1 . 3 1 overwrite_iff 17 | . . . . . . . 3 . . 8 6 formatsys_high 1 | . . . . . 1 . . . . . . Relay Couplers Released 44 | . . . . 18 . . 8 . . 18 . Machine Destruction 40 | . . . . 14 . . 8 . . 18 . Programmers 4 | . . . . 4 . . . . . . . Attached 19 | . . . . . 2 1 1 . 3 11 1 Fabnet Peak Effective % . | . . . . . . . . . . . . Robots Rewired 10 | . . . . . . . . 6 . 4 . Allies Hacked . | . . . . . . . . . . . . Hacks Repelled . | . . . . . . . . . . . . Allies | -11 -10 -9 -8 -8 -8 -8 -8 -8 -6 -6 -5 -------- Run | Yrd Mat Mat Mat Gar Mat Sto Gar Rec Fac Gar Fac Total Allies 33 | . . . . . 1 2 3 6 . 15 6 Largest Group 6 | . . . . . 1 2 1 6 6 4 4 Highest-Rated Group 175 | . . . . . 15 113 16 74 74 175 104 Highest-Rated Ally 100 | . . . . . 15 100 16 18 18 95 49 Total Orders 2 | . . . . . 2 . . . . . . STAY 1 | . . . . . 1 . . . . . . FOLLOW 1 | . . . . . 1 . . . . . . Ally Attacks 142 | . . . . . 2 4 12 21 11 48 44 Total Damage 3466 | . . . . . 47 223 124 153 229 1595 1095 Kills 25 | . . . . . . 1 . 2 2 12 8 Allies Corrupted . | . . . . . . . . . . . . Allies Melted . | . . . . . . . . . . . . Intel | -11 -10 -9 -8 -8 -8 -8 -8 -8 -6 -6 -5 ------- Run | Yrd Mat Mat Mat Gar Mat Sto Gar Rec Fac Gar Fac Robot Analysis Total . | . . . . . . . . . . . . Derelict Logs Recovered . | . . . . . . . . . . . . Drone Launches . | . . . . . . . . . . . . Drone Recoveries . | . . . . . . . . . . . . Exploration | -11 -10 -9 -8 -8 -8 -8 -8 -8 -6 -6 -5 ------------- Run | Yrd Mat Mat Mat Gar Mat Sto Gar Rec Fac Gar Fac Turns Passed 15100 | 114 1379 1093 3638 1653 637 300 1438 606 445 2379 1418 Spaces Moved 6683 | 55 605 363 1249 918 371 104 817 378 259 1017 547 Core 9 | 5 . . . . . . . . . . 4 Treads 2216 | 50 605 363 1198 . . . . . . . . Legs . | . . . . . . . . . . . . Wheels 4458 | . . . 51 918 371 104 817 378 259 1017 543 Hover . | . . . . . . . . . . . . Flight . | . . . . . . . . . . . . Fastest Speed 50 | 50 160 240 135 135 150 150 145 145 150 140 150 Average Speed 189 | 150 198 240 270 146 150 150 146 145 150 179 199 Slowest Speed 2050 | 160 240 240 320 165 150 150 225 150 150 205 2050 Overloaded Moves . | . . . . . . . . . . . . Propulsion Burnouts . | . . . . . . . . . . . . Robots Hopped . | . . . . . . . . . . . . Cave-ins Triggered . | . . . . . . . . . . . . Exploration Rate (%) 50 | 5 95 40 70 86 30 20 72 88 7 76 21 Regions Visited 11 Branch Regions 2 Pre-discovered Areas . | . . . . . . . . . . . . Known Exits Taken 3 | . . . 1 . . 1 . . 1 . . Unknown Exits Taken 5 | 1 1 1 . . 1 . . 1 . . . Scrap Searched . | . . . . . . . . . . . . Spaces Dug . | . . . . . . . . . . . . Terrain Destroyed 141 | . . 4 22 2 2 3 13 . . 1 94 Melee . | . . . . . . . . . . . . Projectile 9 | . . . 2 1 2 3 . . . . 1 AOE 130 | . . 4 20 1 . . 13 . . . 92 Terrain Rammed . | . . . . . . . . . . . . Walls Destroyed . | . . . . . . . . . . . . Machines Disabled . | . . . . . . . . . . . . Actions | -11 -10 -9 -8 -8 -8 -8 -8 -8 -6 -6 -5 --------- Run | Yrd Mat Mat Mat Gar Mat Sto Gar Rec Fac Gar Fac Total 8475 | 80 718 486 1416 1135 437 240 1004 422 313 1448 776 Wait 698 | 10 66 34 40 48 46 114 54 18 31 135 102 Move 6674 | 54 604 362 1249 917 370 103 816 377 259 1016 547 Hop . | . . . . . . . . . . . . Pick Up 112 | 7 5 14 16 28 3 4 12 1 4 12 6 Fast Attach 35 | 5 1 2 10 . 1 5 . . 4 3 4 Attach 44 | 2 1 5 5 4 1 . 4 . 4 10 8 Detach 10 | . 1 3 . . 1 . 1 . 2 1 1 Swap 92 | . 3 9 15 13 4 1 12 2 3 16 14 Drop 93 | . 3 6 30 20 2 8 9 2 4 7 2 Fire 510 | 2 33 48 50 68 9 5 48 16 2 137 92 Melee . | . . . . . . . . . . . . Ram . | . . . . . . . . . . . . Kick . | . . . . . . . . . . . . Crush 5 | . 1 3 1 . . . . . . . . Escape Stasis 196 | . . . . 37 . . 48 . . 111 . Rewire 6 | . . . . . . . . 6 . . . Trap . | . . . . . . . . . . . . Miscellaneous . | . . . . . . . . . . . . Route ------- -11/Scrapyard -10/Materials (discovered 4 exits: *Mat x3 / [*Min]) -9/Materials (discovered 3 exits: *Mat / *Min x2) -8/Materials (discovered 4 exits: [*Fac x2] / *Sto / Gar) -8/Garrison (discovered 3 exits: *Mat x3) -8/Materials (discovered 2 exits: *Sto x2) -8/Storage -8/Garrison (discovered 3 exits: *Rec x3) -8/Recycling -6/Factory (discovered 2 exits: *Fac / Gar) -6/Garrison (discovered 3 exits: *Fac x3) -5/Factory History --------- Turn | Location | Event 19 | -11/Scrapyard | Discovered new exit (range 16) 115 | -11/Scrapyard | Entered Materials 316 | -10/Materials | Build established: Mutant 589 | -10/Materials | Discovered new exit (range 12) 872 | -10/Materials | Discovered new exit (range 8) 944 | -10/Materials | Discovered new exit (range 15) 1115 | -10/Materials | Discovered new exit (range 16) 1494 | -10/Materials | Entered another Materials area 1494 | -9/Materials | Evolved 2 slots: Utility x2 1583 | -9/Materials | Destroyed 7 combat bots 2173 | -9/Materials | Discovered new exit (range 15) 2236 | -9/Materials | Identified exit to Mines 2489 | -9/Materials | Discovered new exit (range 11) 2587 | -9/Materials | Entered another Materials area 2587 | -8/Materials | Evolved 2 slots: Utility x2 3009 | -8/Materials | Discovered new exit (range 7) 3009 | -8/Materials | Discovered new exit (range 19) 4055 | -8/Materials | Discovered new exit (range 4) 6225 | -8/Materials | Identified exit to Garrison 6225 | -8/Materials | Entered Garrison 6252 | -8/Garrison | Triggered checkpoint 6312 | -8/Garrison | Triggered checkpoint 6426 | -8/Garrison | Triggered checkpoint 6497 | -8/Garrison | Discovered new exit (range 15) 6703 | -8/Garrison | Triggered checkpoint 6820 | -8/Garrison | Discovered new exit (range 13) 6866 | -8/Garrison | Triggered checkpoint 6869 | -8/Garrison | Garrison Relay disabled 6899 | -8/Garrison | Installed Relay Interface Framework 7028 | -8/Garrison | Triggered checkpoint 7230 | -8/Garrison | Core integrity fell below 50% 7261 | -8/Garrison | Learned Materials security intel 7404 | -8/Garrison | Garrison Relay disabled 7457 | -8/Garrison | Build established: Bothacker-Mutant 7496 | -8/Garrison | Garrison Relay disabled 7715 | -8/Garrison | Garrison Relay disabled 7824 | -8/Garrison | Discovered new exit (range 10) 7859 | -8/Garrison | Expanded RIF knowledge: Robot Detection 7878 | -8/Garrison | Entered Materials 7892 | -8/Materials | Discovered new exit (range 8) 8456 | -8/Materials | Repaired Broken Remote Datajack 8472 | -8/Materials | Discovered new exit (range 8) 8515 | -8/Materials | Entered Storage 8663 | -8/Storage | Met 01-MTF 8811 | -8/Storage | Identified exit to Garrison 8815 | -8/Storage | Entered Garrison 8815 | -8/Garrison | Accompanied by 2 allies (01-MTF) 8820 | -8/Garrison | 01-MTF left 8836 | -8/Garrison | Triggered checkpoint 8915 | -8/Garrison | Triggered checkpoint 8964 | -8/Garrison | Destroyed 9 combat bots 8986 | -8/Garrison | Triggered checkpoint 9085 | -8/Garrison | Discovered new exit (range 11) 9228 | -8/Garrison | Expanded RIF knowledge: Patrol Navigation 9238 | -8/Garrison | Discovered new exit (range 13) 9341 | -8/Garrison | Triggered checkpoint 9479 | -8/Garrison | Discovered new exit (range 15) 9537 | -8/Garrison | Triggered checkpoint 9599 | -8/Garrison | Garrison Relay disabled 9688 | -8/Garrison | Triggered checkpoint 9793 | -8/Garrison | Garrison Relay disabled 9979 | -8/Garrison | Discovered new exit (range 79) 9979 | -8/Garrison | Discovered new exit (range 25) 9979 | -8/Garrison | Discovered new exit (range 36) 10132 | -8/Garrison | Spotted B-75 Beast 10253 | -8/Garrison | Entered Recycling 10630 | -8/Recycling | Discovered new exit (range 5) 10859 | -8/Recycling | Entered Factory 10859 | -6/Factory | Accompanied by 6 allies 10859 | -6/Factory | Evolved 4 slots: Utility x4 11031 | -6/Factory | Discovered new exit (range 11) 11139 | -6/Factory | Found Scatter Rocket Array 11160 | -6/Factory | Lost 3 allies 11303 | -6/Factory | Identified exit to Garrison 11304 | -6/Factory | Entered Garrison 11304 | -6/Garrison | Accompanied by 1 ally 11340 | -6/Garrison | Expanded RIF knowledge: Command Fork 11421 | -6/Garrison | Garrison Relay disabled 11638 | -6/Garrison | Build established: Botlord-Mutant 11916 | -6/Garrison | Triggered checkpoint 11968 | -6/Garrison | Triggered checkpoint 12178 | -6/Garrison | Discovered new exit (range 12) 12190 | -6/Garrison | Triggered checkpoint 12404 | -6/Garrison | Triggered checkpoint 12485 | -6/Garrison | Discovered new exit (range 15) 12585 | -6/Garrison | Triggered checkpoint 12637 | -6/Garrison | Garrison Relay disabled 12727 | -6/Garrison | Found embedded Infiltrators 12901 | -6/Garrison | Garrison Relay disabled 12959 | -6/Garrison | Discovered new exit (range 10) 13150 | -6/Garrison | P-60 Hacker assimilated allied 0Y-XTU(x) 13155 | -6/Garrison | Garrison Relay disabled 13183 | -6/Garrison | System corruption reached 10% 13215 | -6/Garrison | Lost 8 parts (1p6u1w) 13683 | -6/Garrison | Entered Factory 13683 | -5/Factory | Accompanied by 4 allies 13683 | -5/Factory | Evolved 2 slots: Utility x2 13903 | -5/Factory | Spotted B-75 Beast 14283 | -5/Factory | First assault squad dispatched 14493 | -5/Factory | Lost 4 allies 14971 | -5/Factory | Lost 3 parts (1n1u1w) 15101 | -5/Factory | Self-destructed Last Messages --------------- 15093_ U-05 Engineer builds a Door. 15094_ U-05 Engineer builds a Wall. 15094_ U-05 Engineer lays Concrete. 15095_ G-50 Soldier destroyed. 15095_ Com. Wheel destroyed. 15095_ Destroyed Com. Wheel. 15095_ Mic. Fission Core destroyed. 15095_ Destroyed Mic. Fission Core. 15095_ Relay Coupler [Grunt] destroyed. 15095_ System corrupted by crushing effect (+3). 15095_ Knocked back. 15096_ U-05 Engineer lays Concrete. 15096_ K-01 Serf collects debris. 15097_ U-05 Engineer lays Concrete. 15098_ U-05 Engineer builds a Wall. 15098_ U-05 Engineer lays Concrete. 15099_ B-60 Warrior destroyed. 15099_ Hyp. Gauss Rifle destroyed. 15099_ Destroyed Hyp. Gauss Rifle. 15099_ U-05 Engineer lays Concrete. Map ----- +----------------------------------------------------+ | ?????????????????????????????????????????????????? | | ?????????????????????????????????????????????????? | | ?????????????????????????????????????????????????? | | ?????????????????????????????????????????????????? | | ?????????????????????????????????????????????????? | | ?????????????????????????????????????????????????? | | ?????????????????????????????????????????????????? | | ?????????????????????????????????????????????????? | | ?????????????????????????????????????????????????? | | ?????????????????????????????????????????????????? | | ??????#??????????????????????????????????????????? | | ?????? ?????????????????????????????????????????? | | ?????? #####????????????????????????????????????? | | ??????? #????????????????????????????????????? | | ???????? #????????????????????????????????????? | | ???????? #????????????????????????????????????? | | ????????? #????????????????????????????????????? | | ?????????? #????????????????????????????????????? | | ########### #????????????????????????????????????? | | ! # # ##+##+#??????????????????????????????? | | # + #????##?+#?????????????????????? | | # # #?#### ? ###???????? ??????????? | | |# # #?# # ##????? #?????????? | | # # #?# ####A #?????????? | | # #+##/###### #?????????? | | # # # @ ????????? | | *=# #[ """" *# % = #??????????? | | =*%!# # """"==#! = #####+##???????????? | | !% [=#+#### """"=%#= ?????????????????? | | ==%=%# #??#= """ %!#* ???????????????? | | !**# #??# """"==u* [ # ?????????????? | | /##### #??# """"|u#*=[ #? ???????????? | | #???# #??#] """"=[#== " ###?? ! ??????????? | | #???# #??# =#u u #????? ??????????? | | ##### #???######### ????? ???????????? | | #??????##???# ###????? ????????#???? | | #???????????# k""" #????????????????# ##? | | #???????????# """ #????????????????+ | | +???????????#g """ ""???????????????# | | ###### #??????????? ""???????????????# | | ?????# #??????????? ! "?? ???????????????+ | | ?????+ ?????????? !%| "??? "????????????????# | | ?????# ????????? *!= "??? "????????????????# | | ?????# ???????? ???????????????##????# | | ?????? ???????### ??????????????? #????# | | ?????? #####????????? ????????# ????? ######+### | | ?????? ????????????????????????# """ # | | ?????? ????????????????????????# """ # | | ?????? ????????????????????????# # | | ?????? ????????????????????????+ """ # | +----------------------------------------------------+ Best States ------------- Heat Dissipation 41 Coolant Potential 65 Energy Generation 19 Energy Capacity 315 Matter Stores 300 Matter Capacity 300 Sight Range 16 Terrain Scan Density 10 Armor Coverage 600 Resistance: TH 15 Evasion (%) 40 Targeting Accuracy 8 Core Analysis 6 Recoil Reduction 2 Offensive Hacking 10 Relay Coupler Types 6 Relay Coupler Value 183 Item Schematics ----------------- Remote Datajack | -8/Materials | Scanalyzed Robot Schematics ------------------ None Fabricated ------------ Nothing Alien Tech Used ----------------- None Achievements -------------- None Challenges ------------ None Game ------ Seed SchematicTransportLauncher Manual? 0 Play Time 02:03:36 Cumulative 177.8 hours Start 2024.04.06 @ 01:02:14 End 2024.04.06 @ 13:45:55 Sessions 5 Manual Loads 0 Difficulty Rogue Special Mode None Game No. 136 Rogue 136 Adventurer 0 Explorer 0 Win Type - Total 3 Types 3/0/0/0/0/0/0/0/0 Lore% 59 Gallery% 69 Achievement% 60 Wizard Run 0 Options --------- Layout 0 ASCII 0 Keyboard 1 Movement Numpad Keybinds 0 Fullscreen 2 Font 18/SmallcapsGlow Map View 76x50 Zoom Use 0% Tactical HUD 1 Map Filters NONE Filters NONE Steam 1 RUN: 0facdd31-cbe0-4dd3-9894-574e6d553731